Cogmind - Beta 11.1 --- EXPLORER MODE // 2022.07.10 @ 22:59:08 // Winter2019/RPGLIKE Player: Grimbling Result: Destroyed by H-88 Terminator with KE Penetrator Performance ------------- Evolutions (9) 4500 Regions Visited (29) 5800 Robots Destroyed (438) 2190 Value Destroyed (22892) 22892 Prototype IDs (47) 940 Alien Tech Used (4) 800 Bonus (11612) 11612 TOTAL SCORE: 48734 Bonus ------- High Alert Combat Kills 2686 Follower Combat Kills 601 Aligned with FarCom 300 Met Data Miner 300 Met Warlord at Base 500 MAIN.C Attacked Warlord 500 Warlord Defense Kills 3020 Found Hidden Lab 3000 Pursued by Intercept 1000 Friendly Fire -295 Cogmind --------- Core Integrity 0/800 Matter 297/300 Energy 99/100 System Corruption 2% Temperature Cool (0) Movement Core (50) Location -1/Access Parts ------- > --- POWER (2) -------- (None) > --- PROPULSION (7) --- (None) > --- UTILITY (11) ----- (None) > --- WEAPON (6) ------- (None) > --- INVENTORY (6) ---- Protomatter-94 Protomatter-91 Protomatter-71 Armored Huge Wheel Peak State ------------ > --- POWER ------------ Vortex Chain Reactor > --- PROPULSION ------- Armored Wheel Armored Huge Wheel Centrium Wheel Centrium Wheel Centrium Wheel High-density Centrium Wheel > --- UTILITY ---------- Experimental Power Amplifier Superbattery Improved Signal Interpreter Advanced Terrain Scanner Experimental Target Analyzer Advanced Particle Charger Advanced Weapon Cycler Experimental Phase Shifter Centrium Medium Armor Plating AEGIS Remote Shield Advanced Corruption Screen > --- WEAPON ----------- Improved Lightning Gun Tesla Rifle Tesla Rifle Improved Arc Projector Improved Arc Projector CR-A16's Behemoth Slayer > --- INVENTORY -------- Protomatter Protomatter Protomatter Armored Wheel Experimental Thermal Shield Antimissile System [Rating: 189] Favorites ----------- Power Vortex Chain Reactor Engine Heavy Deuterium Engine Power Core Light Nuclear Core Reactor Vortex Chain Reactor Propulsion Armored Wheel Wheel Armored Wheel Utility Superbattery Device Particle Charger Storage Superbattery Processor Improved Signal Interpreter Protection Light Armor Plating Artifact LC Capacitor Weapon Improved Lightning Gun Energy Gun Improved Lightning Gun Energy Cannon Firepult Ballistic Gun Assault Rifle Ballistic Cannon AWS/Autocannon Impact Weapon Hammer Slashing Weapon Katana Piercing Weapon CR-A16's Behemoth Slayer Build | -11 -10 -10 -9 -9 -9 -8 -8 -8 -7 -7 -7 -7 -6 -6 -6 -6 -6 -5 -5 -5 -5 -5 -4 -4 -4 -4 -3 -2 -1 ------- Run | Scr Mat Min Mat Min Exi Min Mat Sto Fac Low Low Zio Pro Fac Low Low Dat Pro Fac Upp Upp War Pro Fac Arm Lab Res Res Acc Slots Evolved 22 | 4 1 . 4 . . 1 1 1 1 . 1 2 . . . . . . . . 1 . 1 . 1 . 1 1 1 Power 1 | . 1 . . . . . . . . . . . . . . . . . . . . . . . . . . . . Propulsion 6 | 1 . . 2 . . . . . 1 . . 1 . . . . . . . . . . . . . . 1 . . Utility 10 | 2 . . 1 . . . 1 1 . . 1 . . . . . . . . . 1 . 1 . . . . 1 1 Weapon 5 | 1 . . 1 . . 1 . . . . . 1 . . . . . . . . . . . . 1 . . . . Parts Attached 170 | 6 5 . 11 1 6 1 10 6 6 . 2 3 2 4 3 . . 2 1 . 1 5 4 2 13 31 14 6 25 Power 10 | 1 1 . . . . . 1 . 2 . . . . . 1 . . . . . . 1 . . 1 2 . . . Engine 4 | 1 . . . . . . 1 . 1 . . . . . 1 . . . . . . . . . . . . . . Core 2 | . 1 . . . . . . . 1 . . . . . . . . . . . . . . . . . . . . Reactor 4 | . . . . . . . . . . . . . . . . . . . . . . 1 . . 1 2 . . . Propulsion 17 | 2 . . 3 1 . . 1 . 1 . . . . 1 . . . . . . . . 1 . 1 1 1 . 4 Treads . | . . . . . . . . . . . . . . . . . . . . . . . . . . . . . . Leg . | . . . . . . . . . . . . . . . . . . . . . . . . . . . . . . Wheel 17 | 2 . . 3 1 . . 1 . 1 . . . . 1 . . . . . . . . 1 . 1 1 1 . 4 Hover . | . . . . . . . . . . . . . . . . . . . . . . . . . . . . . . Flight . | . . . . . . . . . . . . . . . . . . . . . . . . . . . . . . Utility 71 | 1 1 . 3 . 1 . 2 . 1 . 1 . . 1 . . . . 1 . 1 4 1 . 5 16 12 4 16 Device 45 | 1 . . 1 . . . 1 . 1 . 1 . . 1 . . . . 1 . 1 3 . . 4 9 10 3 8 Storage 3 | . . . . . 1 . . . . . . . . . . . . . . . . . . . . 2 . . . Processor 6 | . . . 1 . . . 1 . . . . . . . . . . . . . . 1 . . 1 . 1 . 1 Hackware . | . . . . . . . . . . . . . . . . . . . . . . . . . . . . . . Protection 16 | . 1 . 1 . . . . . . . . . . . . . . . . . . . 1 . . 4 1 1 7 Artifact 1 | . . . . . . . . . . . . . . . . . . . . . . . . . . 1 . . . Weapon 72 | 2 3 . 5 . 5 1 6 6 2 . 1 3 2 2 2 . . 2 . . . . 2 2 6 12 1 2 5 Energy Gun 51 | . 2 . 4 . 3 . 4 4 2 . 1 2 1 2 1 . . 1 . . . . 1 1 4 10 1 2 5 Energy Cannon 3 | . . . . . 1 . . . . . . . . . . . . . . . . . . . . 2 . . . Ballistic Gun 2 | 2 . . . . . . . . . . . . . . . . . . . . . . . . . . . . . Ballistic Cannon 1 | . . . . . 1 . . . . . . . . . . . . . . . . . . . . . . . . Launcher . | . . . . . . . . . . . . . . . . . . . . . . . . . . . . . . Special Weapon . | . . . . . . . . . . . . . . . . . . . . . . . . . . . . . . Impact Weapon 3 | . 1 . 1 . . 1 . . . . . . . . . . . . . . . . . . . . . . . Slashing Weapon 4 | . . . . . . . 2 2 . . . . . . . . . . . . . . . . . . . . . Piercing Weapon 8 | . . . . . . . . . . . . 1 1 . 1 . . 1 . . . . 1 1 2 . . . . Special Melee Weapon . | . . . . . . . . . . . . . . . . . . . . . . . . . . . . . . Unidentified Prototypes 36 | . . . . . 3 . 2 1 2 . . . . 1 . . . . . . . 4 . . 6 8 2 1 6 Parts Lost . | . . . . . . . . . . . . . . . . . . . . . . . . . . . . . . Power . | . . . . . . . . . . . . . . . . . . . . . . . . . . . . . . Propulsion . | . . . . . . . . . . . . . . . . . . . . . . . . . . . . . . Utility . | . . . . . . . . . . . . . . . . . . . . . . . . . . . . . . Weapon . | . . . . . . . . . . . . . . . . . . . . . . . . . . . . . . Highest Loss Streak . | . . . . . . . . . . . . . . . . . . . . . . . . . . . . . . To Critical Strikes . | . . . . . . . . . . . . . . . . . . . . . . . . . . . . . . Average Slot Usage (%) 91 | . 80 88 85 100 98 100 99 93 94 100 99 98 95 95 95 95 95 95 95 95 95 91 87 90 86 68 88 91 91 Engine 3 | . 11 11 7 7 7 7 6 6 5 5 5 5 5 5 6 10 10 10 10 10 9 2 . . . . . . . Core 2 | . 6 11 7 7 7 7 6 6 5 5 5 5 5 5 3 . . . . . . . . . . . . . . Reactor 1 | . . . . . . . . . . . . . . . . . . . . . . 2 4 4 4 3 4 4 3 Wheel 24 | . 23 22 24 30 30 28 26 25 25 29 28 26 25 25 25 25 25 25 25 25 24 23 22 22 21 21 23 24 23 Device 18 | . 11 11 15 15 15 14 16 12 12 17 17 21 20 20 20 20 20 20 20 20 21 22 22 22 19 12 19 23 23 Storage 4 | . . . . . 4 7 6 6 5 5 5 5 5 5 5 5 5 5 5 5 4 4 4 4 4 2 4 4 3 Processor 5 | . . . . 7 2 . 2 6 5 5 5 5 5 5 5 5 5 5 5 5 4 4 4 4 4 4 5 8 9 Protection 5 | . 3 11 7 7 7 7 6 6 5 5 5 5 5 5 5 5 5 5 5 5 4 4 6 9 8 6 6 4 3 Energy Gun 20 | . 12 11 18 23 21 21 20 19 17 17 21 22 24 25 22 25 25 24 25 25 24 23 21 21 18 12 20 20 19 Piercing Weapon 1 | . . . . . . . . . . . . . . . 2 . . . . . . . . . 3 4 4 4 3 Naked Turns 5 | . . . . . . . . . . . . . . . . . . . . . . . . . . . . . 5 Heaviest Build 107 | 10 19 18 25 25 29 31 35 41 45 45 49 54 54 54 58 58 58 58 58 58 62 74 81 81 83 99 99 102 107 Greatest Support 113 | 20 20 20 42 42 42 42 44 44 54 54 54 54 54 72 72 72 72 72 72 72 72 77 83 83 85 85 105 105 113 Greatest Overweight (x) 6 | 1 . . 1 . . . . . 1 . . . . . . . . . . . . . . . . 6 . . 1 Average Overweight (x) . | . . . . . . . . . . . . . . . . . . . . . . . . . . . . . . Largest Inventory Capacity 6 | 3 3 3 3 3 3 3 5 5 5 5 5 5 5 5 5 5 5 5 5 5 5 5 5 5 6 6 6 6 6 Average Capacity 5 | 2 3 3 3 3 3 3 4 5 5 5 5 5 5 5 5 5 5 5 5 5 5 5 5 5 5 6 6 6 6 Most Carried 6 | . 1 . 2 2 3 2 5 5 5 5 5 5 5 5 5 5 5 5 5 5 5 5 5 5 6 6 6 6 6 Average Carried 4 | . . . . 1 2 1 3 4 4 5 5 4 4 4 3 3 5 5 5 4 5 4 3 4 5 5 5 5 5 Final Capacity 6 | 3 3 3 3 3 3 3 5 5 5 5 5 5 5 5 5 5 5 5 5 5 5 5 5 5 6 6 6 6 6 Final Carried 6 | . . . 1 2 2 1 5 5 5 5 5 4 5 5 3 5 5 5 5 5 5 5 4 5 5 6 5 6 5 Class Distribution -------------------- 33% | Hacker-Assassin 32% | Scavenger-Skirmisher 20% | Scavenger-Assassin 8% | Hacker-Skirmisher 3% | Commander-Assassin Dominant Class ---------------- Hacker-Skirmisher | -10/Materials Hacker-Assassin | -10/Mines Scavenger-Skirmisher | -9/Materials Scavenger-Skirmisher | -9/Mines Scavenger-Skirmisher | -9/Exiles Scavenger-Assassin | -8/Mines Scavenger-Assassin | -8/Materials Scavenger-Assassin | -8/Storage Scavenger-Assassin | -7/Factory Scavenger-Assassin | -7/Lower Caves Scavenger-Skirmisher | -7/Lower Caves Scavenger-Skirmisher | -7/Zion Scavenger-Skirmisher | -6/Proximity Caves Scavenger-Skirmisher | -6/Factory Scavenger-Skirmisher | -6/Lower Caves Scavenger-Skirmisher | -6/Lower Caves Scavenger-Skirmisher | -6/Data Miner Scavenger-Skirmisher | -5/Proximity Caves Scavenger-Skirmisher | -5/Factory Scavenger-Skirmisher | -5/Upper Caves Scavenger-Skirmisher | -5/Upper Caves Hacker-Skirmisher | -5/Warlord Hacker-Tank | -4/Proximity Caves Hacker-Skirmisher | -4/Factory Hacker-Assassin | -4/Armory Hacker-Assassin | -4/Lab Hacker-Assassin | -3/Research Hacker-Assassin | -2/Research Hacker-Assassin | -1/Access Resources | -11 -10 -10 -9 -9 -9 -8 -8 -8 -7 -7 -7 -7 -6 -6 -6 -6 -6 -5 -5 -5 -5 -5 -4 -4 -4 -4 -3 -2 -1 ----------- Run | Scr Mat Min Mat Min Exi Min Mat Sto Fac Low Low Zio Pro Fac Low Low Dat Pro Fac Upp Upp War Pro Fac Arm Lab Res Res Acc Matter Collected 1945 | 356 56 30 97 20 . 70 80 80 52 17 20 29 21 30 40 . . 20 10 . 26 68 30 37 126 95 383 30 122 Remotely . | . . . . . . . . . . . . . . . . . . . . . . . . . . . . . . Salvage Created 22667 | 306 233 14 705 123 . . 1139 709 1648 174 354 . 243 1122 260 277 . 358 258 401 350 1589 482 886 3206 95 1294 739 5702 Parts 952 | 29 12 . 47 14 . 2 67 47 72 15 16 . 17 30 11 8 . 21 10 15 20 38 19 30 113 1 44 14 240 Haulers Intercepted 18 | . 1 . 2 . . . 4 5 1 . . . . 2 . . . . . . . . . . . . . . 3 Recyclers Shooed 2 | 1 . . . 1 . . . . . . . . . . . . . . . . . . . . . . . . . Parts Field Recycled . | . . . . . . . . . . . . . . . . . . . . . . . . . . . . . . Retrieved Matter . | . . . . . . . . . . . . . . . . . . . . . . . . . . . . . . Parts Self-Destructed . | . . . . . . . . . . . . . . . . . . . . . . . . . . . . . . Prevented . | . . . . . . . . . . . . . . . . . . . . . . . . . . . . . . Kills | -11 -10 -10 -9 -9 -9 -8 -8 -8 -7 -7 -7 -7 -6 -6 -6 -6 -6 -5 -5 -5 -5 -5 -4 -4 -4 -4 -3 -2 -1 ------- Run | Scr Mat Min Mat Min Exi Min Mat Sto Fac Low Low Zio Pro Fac Low Low Dat Pro Fac Upp Upp War Pro Fac Arm Lab Res Res Acc Combat Hostiles Destroyed 324 | . 4 . 11 2 . 2 15 11 28 7 6 . 7 10 4 5 . 6 . 7 7 23 7 13 51 1 21 6 70 Melee 19 | . . . . . . . 1 . 1 1 . . 1 . . . . . . . . . . . 2 1 5 . 7 Guns 177 | . 3 . 8 2 . 1 8 10 23 4 4 . 6 7 3 3 . 4 . 3 6 17 5 8 25 . 4 . 23 AOE 21 | . 1 . 2 . . . 2 . 1 2 . . . 1 . 2 . 1 . 1 . 1 . . 2 . 2 . 3 Classes Destroyed 23 | 3 4 . 2 . . 1 3 . 3 . 1 . . . 1 . . . . . . 3 . . 1 . . . 1 Worker 20 | 2 . . 3 . . . 3 1 1 . . . . 4 . . . . 1 . . . . 3 . . . . 2 Builder 13 | . 1 . 3 . . . 2 1 3 . . . . . . . . . 1 . . . . . . . 1 . 1 Tunneler 14 | 9 . 1 . 2 . . 1 . . . . . . 1 . . . . . . . . . . . . . . . Hauler 18 | . 1 . 2 . . . 4 5 1 . . . . 2 . . . . . . . . . . . . . . 3 Recycler 8 | 1 . . . 1 . . 2 . 1 . . . . 2 . . . . 1 . . . . . . . . . . Carrier 2 | . . . . . . . . . 1 . . . . . . . . . . . . . . . 1 . . . . Minesweeper 1 | . . . . . . . . . . . . . . . 1 . . . . . . . . . . . . . . Mechanic 2 | . . . . . . . . . 1 . . . . . . . . . . . . . . . . . . 1 . Operator 9 | . . . . . . . 1 1 1 . . . . 1 . . . . 1 . . . . . 3 . . . 1 Watcher 31 | . . . 3 . . . 4 2 3 . . . . 1 . . . . 2 . . . . 3 4 . 1 1 7 Swarmer 34 | . 2 . 2 . . . 3 . 2 . . . . 2 2 . . . . 2 3 . 3 . 8 . . . 5 Grunt 121 | . 2 . 6 2 . . 3 4 21 4 4 . 2 2 1 5 . 4 . . 2 13 2 8 10 . . 2 24 Brawler 8 | . . . . . . . 2 . . . 1 . 1 . . . . . . . . 1 . . 1 . . 1 1 Duelist 8 | . . . . . . . 1 . 1 1 . . . . . . . . . . 1 . . 1 1 . . . 2 Protector 1 | . . . . . . . . . . . . . . . . . . . . . . 1 . . . . . . . Sentry 53 | . . . 3 . . . 5 7 2 1 . . 1 3 . . . . . 1 1 . 1 3 11 . 5 3 6 Demolisher 4 | . . . . . . . . . . . . . . . . . . . . . . . . . 4 . . . . Specialist 1 | . . . . . . . . . . . . . . . . . . . . . . 1 . . . . . . . Hunter 31 | . . . . . . 2 1 . 1 . . . . 2 . . . . . 3 . 2 . . 8 . 2 . 10 Programmer 31 | . . . . . . . . . 1 1 . . 3 1 . . . 1 . 1 . 3 . 1 7 . 3 . 9 Heavy 1 | . . . . . . . . . . . . . . . . . . . . . . . . . . . . . 1 Behemoth 8 | . . . . . . . . . . . 1 . . . 1 . . 1 . . . . 1 . 1 . 1 . 2 Tracker 10 | . . . . . . . . . . . . . . . . . . . . . . . . . . . 5 . 5 Combat Programmer 10 | . . . . . . . . . . . . . . . . . . . . . . . . . . . 5 . 5 Executioner 2 | . . . . . . . . . . . . . . . . . . . . . . 2 . . . . . . . Packrat 1 | . . . . . . . . . . . . . . . . . . . . . 1 . . . . . . . . Best Kill Streak 11 | 4 4 1 5 2 . 1 8 6 7 3 3 . 2 8 4 3 . 2 3 3 5 11 3 7 8 1 4 4 9 Combat Bots Only 11 | . 2 . 4 2 . 1 3 3 7 3 3 . 2 3 2 3 . 2 . 3 5 11 3 6 6 1 4 3 8 Max Kills in Single Turn 7 | 1 1 1 2 2 . 1 7 2 2 2 2 . 1 3 1 2 . 1 1 2 3 2 2 1 2 1 2 1 2 Gunslinging 1 | . . . . . . . . 1 1 . 1 . . 1 . . . . . . 1 1 1 . 1 . . . 1 Exploded 2 | . 1 . 2 . . . 2 . 1 2 . . . 1 . 2 . 1 . 1 . 1 . . 1 . 2 . 1 Melee 1 | . . . . . . . 1 . 1 1 . . 1 . . . . . . . . . . . 1 1 1 . 1 Uniques/NPCs Destroyed 1 | . . . . . . . . . . . . . . . . . . . . . . . . . . 1 . . . A5 (-4/Lab) Combat | -11 -10 -10 -9 -9 -9 -8 -8 -8 -7 -7 -7 -7 -6 -6 -6 -6 -6 -5 -5 -5 -5 -5 -4 -4 -4 -4 -3 -2 -1 -------- Run | Scr Mat Min Mat Min Exi Min Mat Sto Fac Low Low Zio Pro Fac Low Low Dat Pro Fac Upp Upp War Pro Fac Arm Lab Res Res Acc Damage Taken 8955 | . 101 153 185 9 . 48 347 217 359 116 141 . 152 177 373 40 . 122 . 139 11 404 81 129 1122 59 1160 45 3265 Core 6379 | . 82 124 123 7 . 30 247 153 260 85 92 . 113 130 267 32 . 74 . 107 8 294 57 85 770 47 805 31 2356 Absorbed by Shields 4110 | . . . . . . . . . . . . . . . . . . . . . 4 . . . 139 55 1031 43 2838 Redirected to Core 5538 | . 53 90 103 7 . 30 240 132 225 73 92 . 104 127 246 23 . 74 . 79 8 268 57 85 700 38 692 25 1967 Core Remaining (%) 95 | 100 . 67 . . . 100 . 100 . . . . 96 . . . . 94 . . . . 100 . . 100 100 100 . Volleys Fired 638 | 16 10 2 47 5 . 4 40 23 42 7 11 . 11 20 4 4 . 6 6 8 8 29 5 24 80 1 47 10 168 Largest 5 | 2 2 1 3 3 . 3 3 4 3 3 4 . 5 5 5 5 . 5 5 5 5 5 5 5 5 4 5 5 5 Hottest 320 | 40 60 40 135 135 . 135 135 240 180 180 240 . 300 300 300 300 . 300 300 300 300 300 300 300 300 240 300 300 320 Shots Fired 2655 | 32 20 2 90 15 . 12 119 78 126 21 38 . 55 100 20 20 . 30 30 40 42 145 25 116 359 4 236 50 830 Gun 2655 | 32 20 2 90 15 . 12 119 78 126 21 38 . 55 100 20 20 . 30 30 40 42 145 25 116 359 4 236 50 830 Cannon . | . . . . . . . . . . . . . . . . . . . . . . . . . . . . . . Launcher . | . . . . . . . . . . . . . . . . . . . . . . . . . . . . . . Special . | . . . . . . . . . . . . . . . . . . . . . . . . . . . . . . Kinetic 44 | 32 12 . . . . . . . . . . . . . . . . . . . . . . . . . . . . Thermal . | . . . . . . . . . . . . . . . . . . . . . . . . . . . . . . Explosive . | . . . . . . . . . . . . . . . . . . . . . . . . . . . . . . Electromagnetic 2611 | . 8 2 90 15 . 12 119 78 126 21 38 . 55 100 20 20 . 30 30 40 42 145 25 116 359 4 236 50 830 Robot Hit Streak 77 | 15 17 19 21 24 . 34 32 77 24 17 24 . 25 11 14 13 . 8 8 15 9 35 11 38 39 . 61 26 61 Robot Miss Streak 5 | 1 1 . 2 . . . 1 1 2 1 1 . 1 1 3 1 . 1 1 1 1 3 1 1 2 . 5 1 2 Penetration Max . | . . . . . . . . . . . . . . . . . . . . . . . . . . . . . . Secondary Targets 53 | . . . 1 . . . 2 1 11 . 1 . 1 1 . . . . . 1 2 9 2 3 9 . 2 . 7 Max Gunslinging Chain 2 | . . . 1 . . . 1 1 2 . 1 . 1 1 . . . . . 1 1 2 1 1 1 . 1 . 1 Shots Hit Robots 2199 | 24 17 3 74 9 . 10 108 62 93 19 30 . 47 59 10 15 . 21 13 29 23 117 20 90 300 8 211 43 744 Core Hits 842 | 13 9 1 27 5 . 3 38 24 44 10 9 . 19 28 8 11 . 10 7 12 11 53 9 37 102 4 81 13 254 Critical Kills . | . . . . . . . . . . . . . . . . . . . . . . . . . . . . . . Critical Parts Destroyed . | . . . . . . . . . . . . . . . . . . . . . . . . . . . . . . Critical Strikes 78 | . 1 . 2 2 . . 2 1 2 . 2 . . . . . . 2 1 . . 1 . 3 6 2 10 1 40 Corrupt 57 | . 1 . 2 2 . . 1 1 2 . 2 . . . . . . 2 1 . . 1 . 3 5 . 3 1 30 Sever 1 | . . . . . . . 1 . . . . . . . . . . . . . . . . . . . . . . Impale 20 | . . . . . . . . . . . . . . . . . . . . . . . . . 1 2 7 . 10 Melee Attacks 149 | . . 1 . . . . 7 9 7 2 . 1 2 . 6 . . 1 . . . . 1 1 17 24 25 . 45 Impact 1 | . . 1 . . . . . . . . . . . . . . . . . . . . . . . . . . . Slashing 25 | . . . . . . . 7 9 7 2 . . . . . . . . . . . . . . . . . . . Piercing 123 | . . . . . . . . . . . . 1 2 . 6 . . 1 . . . . 1 1 17 24 25 . 45 Sneak Attacks 13 | . . 1 . . . . 5 2 . . . . . . . . . . . . . . . . . . . . 5 Combat Hostiles 4 | . . . . . . . . . . . . . . . . . . . . . . . . . . . . . 4 Follow-up Attacks . | . . . . . . . . . . . . . . . . . . . . . . . . . . . . . . Damage Inflicted 48343 | 308 339 79 1256 203 . 159 2856 2228 3069 639 812 . 583 1804 355 604 . 583 463 608 575 2767 540 2470 6906 523 3227 1379 13008 Guns 38955 | 308 210 25 1101 176 . 159 1716 1687 2697 417 751 . 513 1528 251 444 . 485 463 563 575 2371 540 2252 5992 . 2291 1046 10394 Cannons . | . . . . . . . . . . . . . . . . . . . . . . . . . . . . . . Explosions 5658 | . 129 . 150 27 . . 685 190 202 156 61 . . 276 . 160 . 98 . 45 . 396 . 218 773 . 199 333 1560 Melee 3725 | . . 54 . . . . 455 351 170 66 . . 70 . 104 . . . . . . . . . 141 523 737 . 1054 Ramming 5 | . . . 5 . . . . . . . . . . . . . . . . . . . . . . . . . . Kinetic 411 | 308 103 . . . . . . . . . . . . . . . . . . . . . . . . . . . . Thermal 5549 | . 129 . 150 27 . . 685 190 202 156 61 . . 167 . 160 . 98 . 45 . 396 . 218 773 . 199 333 1560 Explosive 109 | . . . . . . . . . . . . . . 109 . . . . . . . . . . . . . . . Electromagnetic 38544 | . 107 25 1101 176 . 159 1716 1687 2697 417 751 . 513 1528 251 444 . 485 463 563 575 2371 540 2252 5992 . 2291 1046 10394 Impact 54 | . . 54 . . . . . . . . . . . . . . . . . . . . . . . . . . . Slashing 1042 | . . . . . . . 455 351 170 66 . . . . . . . . . . . . . . . . . . . Piercing 2629 | . . . . . . . . . . . . . 70 . 104 . . . . . . . . . 141 523 737 . 1054 Highest Corruption 13 | . . . . . . . . . 1 1 1 1 2 . . . . . . 2 2 5 5 . 13 13 4 . 2 Average Corruption 6 | . . . . . . . . . 1 1 1 1 1 . . . . . . 1 2 4 5 . 10 13 3 . 1 Corruption Purged . | . . . . . . . . . . . . . . . . . . . . . . . . . . . . . . Corruption Blocked 65 | . . . . . . . . . . . . . . . . . . . . . . . . . . . 8 15 42 Effects 123 | . . . . . . . . . . 4 . . 1 . . . . . . . 11 8 6 . 56 23 14 . . Message Errors 27 | . . . . . . . . . . 1 . . 1 . . . . . . . 1 3 3 . 10 6 2 . . Matter Fused 29 | . . . . . . . . . . 1 . . . . . . . . . . 2 2 1 . 13 6 4 . . Heat Flow Errors 15 | . . . . . . . . . . . . . . . . . . . . . 3 2 . . 6 3 1 . . Energy Discharges 14 | . . . . . . . . . . 1 . . . . . . . . . . 1 . . . 5 4 3 . . Parts Rejected 2 | . . . . . . . . . . . . . . . . . . . . . . . . . 2 . . . . Data Loss (minor) 15 | . . . . . . . . . . . . . . . . . . . . . 2 . 1 . 9 3 . . . Data Loss (major) 8 | . . . . . . . . . . . . . . . . . . . . . . 1 1 . 3 1 2 . . Misfires 4 | . . . . . . . . . . . . . . . . . . . . . 2 . . . 1 . 1 . . Alerts 4 | . . . . . . . . . . 1 . . . . . . . . . . . . . . 2 . 1 . . Misdirections 1 | . . . . . . . . . . . . . . . . . . . . . . . . . 1 . . . . Weapon Failures 4 | . . . . . . . . . . . . . . . . . . . . . . . . . 4 . . . . Overload Shots . | . . . . . . . . . . . . . . . . . . . . . . . . . . . . . . Overflow Damage 822 | . . 14 . 2 . . 165 77 . . . . . . . . . . . . . . . . 169 . . 2 393 Projectiles . | . . . . . . . . . . . . . . . . . . . . . . . . . . . . . . Explosions 386 | . . . . 2 . . . . . . . . . . . . . . . . . . . . 169 . . 2 213 Melee 436 | . . 14 . . . . 165 77 . . . . . . . . . . . . . . . . . . . . 180 Knockbacks 1 | . . 1 . . . . . . . . . . . . . . . . . . . . . . . . . . . Impact 1 | . . 1 . . . . . . . . . . . . . . . . . . . . . . . . . . . Kinetic . | . . . . . . . . . . . . . . . . . . . . . . . . . . . . . . Secondary . | . . . . . . . . . . . . . . . . . . . . . . . . . . . . . . Self-Inflicted Damage 281 | . 12 . 2 . . . 22 52 . . . . . 83 . . . 33 . . . . . . 44 . 33 . . Shots 11 | . 1 . . . . . 1 2 . . . . . 2 . . . 1 . . . . . . 3 . 1 . . Rammed 1 | . . . 1 . . . . . . . . . . . . . . . . . . . . . . . . . . Targets Rammed 1 | . . . 1 . . . . . . . . . . . . . . . . . . . . . . . . . . Kicked . | . . . . . . . . . . . . . . . . . . . . . . . . . . . . . . Crushed . | . . . . . . . . . . . . . . . . . . . . . . . . . . . . . . Highest Temperature 264 | . . . 3 2 . . 22 186 24 66 117 . 264 198 66 75 . 150 66 198 186 144 . . 84 59 146 . 120 Average Temperature 56 | . . . 2 2 . . 7 61 18 26 39 . 110 66 44 48 . 73 44 90 84 46 . . 36 40 78 . 49 Received Heat Transfer 1490 | . 69 . 111 9 . . 198 81 153 48 51 . 15 36 72 18 . 39 . . . 181 9 27 159 . 12 21 181 Siege Activations . | . . . . . . . . . . . . . . . . . . . . . . . . . . . . . . Robots Corrupted 105 | . . . 1 . . 1 5 2 4 . 2 . . 3 . . . . . 3 1 5 1 6 21 . 9 6 35 Combat Hostiles 100 | . . . 1 . . 1 4 1 3 . 2 . . 2 . . . . . 3 1 5 1 5 21 . 9 6 35 Parts Fried 308 | . . 3 11 2 . 2 13 8 20 1 3 . 5 13 2 . . 7 7 3 2 17 4 21 37 . 21 13 93 Impact Corruptions 1 | . . 1 . . . . . . . . . . . . . . . . . . . . . . . . . . . Robots Melted . | . . . . . . . . . . . . . . . . . . . . . . . . . . . . . . Combat Hostiles . | . . . . . . . . . . . . . . . . . . . . . . . . . . . . . . Parts Melted 2 | . . . . . . . 2 . . . . . . . . . . . . . . . . . . . . . . Heat Transferred 3788 | . 200 . 200 50 . . 550 150 200 100 50 . . 150 . 50 . 50 . . . 176 . 150 550 . 100 162 900 Parts Sabotaged . | . . . . . . . . . . . . . . . . . . . . . . . . . . . . . . Parts Stolen . | . . . . . . . . . . . . . . . . . . . . . . . . . . . . . . Parts Stripped . | . . . . . . . . . . . . . . . . . . . . . . . . . . . . . . Power Chain Reactions 52 | . 2 . 3 1 . . 5 3 3 2 1 . . 3 . 1 . 1 . 1 . 2 1 2 8 . 1 2 10 Missiles Intercepted . | . . . . . . . . . . . . . . . . . . . . . . . . . . . . . . Alert | -11 -10 -10 -9 -9 -9 -8 -8 -8 -7 -7 -7 -7 -6 -6 -6 -6 -6 -5 -5 -5 -5 -5 -4 -4 -4 -4 -3 -2 -1 ------- Run | Scr Mat Min Mat Min Exi Min Mat Sto Fac Low Low Zio Pro Fac Low Low Dat Pro Fac Upp Upp War Pro Fac Arm Lab Res Res Acc Peak Influence 1155 | 60 79 12 313 86 . 75 506 440 722 . . . . 375 . . . . 242 . . . . 628 721 . 348 175 1155 Initial 225 | . 29 7 3 3 . . 20 70 54 . . . . 86 . . . . 79 . . . . 81 225 . . . 46 Average 282 | 30 27 9 143 42 . 37 167 113 363 . . . . 178 . . . . 165 . . . . 331 394 . 117 89 558 Maximum Alert Level 4 | . . . 1 . . . 2 2 3 . . . . 1 . . . . 1 . . . . 2 3 . 1 . 4 Low Security (%) 44 | 100 100 100 77 100 . 100 72 85 14 . . . . 59 . . . . 49 . . . . 26 5 . 70 100 8 Level 1 27 | . . . 22 . . . 11 10 45 . . . . 40 . . . . 50 . . . . 27 46 . 29 . 24 Level 2 19 | . . . . . . . 15 3 33 . . . . . . . . . . . . . . 45 41 . . . 31 Level 3 8 | . . . . . . . . . 6 . . . . . . . . . . . . . . . 6 . . . 34 Level 4 . | . . . . . . . . . . . . . . . . . . . . . . . . . . . . . . Level 5 . | . . . . . . . . . . . . . . . . . . . . . . . . . . . . . . High Security . | . . . . . . . . . . . . . . . . . . . . . . . . . . . . . . Max Security . | . . . . . . . . . . . . . . . . . . . . . . . . . . . . . . Squads Dispatched 65 | . . . 2 . . . . 3 9 . . . . 2 . . . . 1 . . . . 3 9 . 9 . 27 Investigation 16 | . . . 1 . . . . . 6 . . . . 1 . . . . 1 . . . . 1 2 . 1 . 3 Extermination 11 | . . . . . . . . . . . . . . . . . . . . . . . . 1 5 . 1 . 4 Reinforcement 12 | . . . 1 . . . . 3 1 . . . . 1 . . . . . . . . . 1 . . . . 5 Assault 4 | . . . . . . . . . 1 . . . . . . . . . . . . . . . 2 . . . 1 Garrison 6 | . . . . . . . . . 1 . . . . . . . . . . . . . . . . . . . 5 Intercept 16 | . . . . . . . . . . . . . . . . . . . . . . . . . . . 7 . 9 Searches Triggered . | . . . . . . . . . . . . . . . . . . . . . . . . . . . . . . Data Miner Redirects 7 | . . . . . . . . . . . . . . . . . . . . . . . . 1 4 . 1 . 1 Construction Impeded 2 | . . . . . . . . 1 . . . . . . . . . . . . . . . . . . . . 1 Haulers Reinforced 2 | . . . . . . . . . . . . . . . . . . . . . . . . 1 . . . . 1 Active Scanning Responses . | . . . . . . . . . . . . . . . . . . . . . . . . . . . . . . Cargo Convoy Interrupts . | . . . . . . . . . . . . . . . . . . . . . . . . . . . . . . Stealth | -11 -10 -10 -9 -9 -9 -8 -8 -8 -7 -7 -7 -7 -6 -6 -6 -6 -6 -5 -5 -5 -5 -5 -4 -4 -4 -4 -3 -2 -1 --------- Run | Scr Mat Min Mat Min Exi Min Mat Sto Fac Low Low Zio Pro Fac Low Low Dat Pro Fac Upp Upp War Pro Fac Arm Lab Res Res Acc Distress Signals 21 | . 2 . 1 . . . 4 . . . . . . . . . . . . . . 1 . 1 . . . 9 3 Communications Jammed 17 | . . . . . . . . . . . . . . . . . . . 1 . . 3 . 12 1 . . . . Distress Signals 16 | . . . . . . . . . . . . . . . . . . . 1 . . 3 . 11 1 . . . . Times Spotted 392 | . 6 2 13 1 . 2 20 17 29 7 6 . 6 6 4 3 . 5 5 8 7 31 7 16 61 1 20 10 99 Peak Tracking Total 20 | . 3 2 5 . . 1 6 3 6 3 3 . 2 1 1 2 . 1 2 3 5 8 2 3 6 1 6 4 20 Tactical Retreats 19 | . . . . . . . 2 4 . . . . . . . . . . . . . 2 . 1 1 . 2 1 6 Traps | -11 -10 -10 -9 -9 -9 -8 -8 -8 -7 -7 -7 -7 -6 -6 -6 -6 -6 -5 -5 -5 -5 -5 -4 -4 -4 -4 -3 -2 -1 ------- Run | Scr Mat Min Mat Min Exi Min Mat Sto Fac Low Low Zio Pro Fac Low Low Dat Pro Fac Upp Upp War Pro Fac Arm Lab Res Res Acc Traps Triggered 10 | . . . . . . . . 2 2 . . . . . . . . . . . . . . . 1 . . . 5 Indirectly . | . . . . . . . . . . . . . . . . . . . . . . . . . . . . . . Trap Hack Attempts . | . . . . . . . . . . . . . . . . . . . . . . . . . . . . . . Triggered . | . . . . . . . . . . . . . . . . . . . . . . . . . . . . . . Disarmed 4 | . . . . . . . . . . . . . . . . . . . . . . . . . 4 . . . . Reprogrammed 13 | . . . . . . . . . 5 . . . . . . . . . . . . . . 8 . . . . . Reused 1 | . . . . . . . . . 1 . . . . . . . . . . . . . . . . . . . . Traps Extracted . | . . . . . . . . . . . . . . . . . . . . . . . . . . . . . . Installed . | . . . . . . . . . . . . . . . . . . . . . . . . . . . . . . Triggered 21 | . . . . . . . . 1 1 . . . 3 . 3 . . . . . . 12 . . . . . . 1 Machines | -11 -10 -10 -9 -9 -9 -8 -8 -8 -7 -7 -7 -7 -6 -6 -6 -6 -6 -5 -5 -5 -5 -5 -4 -4 -4 -4 -3 -2 -1 ---------- Run | Scr Mat Min Mat Min Exi Min Mat Sto Fac Low Low Zio Pro Fac Low Low Dat Pro Fac Upp Upp War Pro Fac Arm Lab Res Res Acc Machines Disabled 51 | . . . 1 . . . 10 5 5 . . . . 8 . . . . 1 . . . . 2 14 3 . . 2 Max in Single Turn 9 | . . . 1 . . . 9 2 1 . . . . 4 . . . . 1 . . . . 1 1 1 . . 1 Garrison Access 8 | . . . . . . . 1 1 1 . . . . 1 . . . . . . . . . . . . . 2 2 Machines Sabotaged . | . . . . . . . . . . . . . . . . . . . . . . . . . . . . . . Garrisons Compromised . | . . . . . . . . . . . . . . . . . . . . . . . . . . . . . . Overloaded Fab Kills . | . . . . . . . . . . . . . . . . . . . . . . . . . . . . . . Hacking | -11 -10 -10 -9 -9 -9 -8 -8 -8 -7 -7 -7 -7 -6 -6 -6 -6 -6 -5 -5 -5 -5 -5 -4 -4 -4 -4 -3 -2 -1 --------- Run | Scr Mat Min Mat Min Exi Min Mat Sto Fac Low Low Zio Pro Fac Low Low Dat Pro Fac Upp Upp War Pro Fac Arm Lab Res Res Acc Machines Accessed 61 | . 3 . 1 . . . 5 7 4 . . . . 4 . . 4 . 3 1 1 4 . 2 10 2 2 . 8 Terminals 38 | . 3 . 1 . . . 4 6 3 . . . . 2 . . . . 3 . . . . 2 7 . 2 . 5 Fabricators 6 | . . . . . . . . . 1 . . . . 1 . . . . . . . . . . 3 . . . 1 Repair Stations . | . . . . . . . . . . . . . . . . . . . . . . . . . . . . . . Recycling Units . | . . . . . . . . . . . . . . . . . . . . . . . . . . . . . . Scanalyzers . | . . . . . . . . . . . . . . . . . . . . . . . . . . . . . . Garrison Access 5 | . . . . . . . 1 1 . . . . . 1 . . . . . . . . . . . . . . 2 Total Hacks 187 | . 12 . 5 . . . 13 18 14 . . . . 10 . . 29 . 8 1 1 8 . 8 34 8 5 . 13 Successful 127 | . 7 . 3 . . . 8 13 9 . . . . 7 . . 29 . 2 1 1 8 . 4 19 8 3 . 5 Failed 60 | . 5 . 2 . . . 5 5 5 . . . . 3 . . . . 6 . . . . 4 15 . 2 . 8 Catastrophic 6 | . . . . . . . . . 1 . . . . . . . . . . . . . . . 1 . 1 . 3 Database Lockouts . | . . . . . . . . . . . . . . . . . . . . . . . . . . . . . . Manual 82 | . 4 . 4 . 1 . 11 12 7 . . . . 4 . . . . 6 . . 1 . 3 15 3 2 . 9 Terminals 118 | . 12 . 5 . . . 12 17 13 . . . . 6 . . . . 8 . . . . 8 25 . 5 . 7 Fabricators 16 | . . . . . . . . . 1 . . . . 3 . . . . . . . . . . 9 . . . 3 Repair Stations . | . . . . . . . . . . . . . . . . . . . . . . . . . . . . . . Recycling Units . | . . . . . . . . . . . . . . . . . . . . . . . . . . . . . . Scanalyzers . | . . . . . . . . . . . . . . . . . . . . . . . . . . . . . . Garrison Access 6 | . . . . . . . 1 1 . . . . . 1 . . . . . . . . . . . . . . 3 Terminal Hacks 86 | . 7 . 2 . . . 4 9 5 . . . . 1 . . 29 . 1 1 1 8 . 3 5 8 2 . . Record 25 | . . . . . . . . . . . . . . . . . 11 . . . . 7 . . . 7 . . . Part Schematic 10 | . . . . . . . . . . . . . . . . . 10 . . . . . . . . . . . . Robot Schematic 5 | . . . . . . . . . . . . . . . . . 5 . . . . . . . . . . . . Robot Analysis 1 | . . . . . . . . 1 . . . . . . . . . . . . . . . . . . . . . Prototype ID Bank 6 | . 3 . . . . . . . . . . . . . . . 3 . . . . . . . . . . . . Open Door 6 | . . . . . . . . 3 . . . . . . . . . . . 1 1 1 . . . . . . . Level Access Points 1 | . . . . . . . 1 . . . . . . . . . . . . . . . . . . . . . . Branch Access Points 3 | . . . . . . . . . 1 . . . . . . . . . 1 . . . . 1 . . . . . Emergency Access Points 1 | . . . . . . . . . 1 . . . . . . . . . . . . . . . . . . . . Unreport Threat 17 | . 4 . 1 . . . 3 5 . . . . . 1 . . . . . . . . . . 3 . . . . Disarm Traps 1 | . . . . . . . . . . . . . . . . . . . . . . . . . 1 . . . . Reprogram Traps 5 | . . . . . . . . . 3 . . . . . . . . . . . . . . 2 . . . . . Dispatch Records 1 | . . . 1 . . . . . . . . . . . . . . . . . . . . . . . . . . Recall Extermination 1 | . . . . . . . . . . . . . . . . . . . . . . . . . 1 . . . . Registered Components 1 | . . . . . . . . . . . . . . . . . . . . . . . . . . . 1 . . Registered Prototypes 1 | . . . . . . . . . . . . . . . . . . . . . . . . . . . 1 . . Gate Test 138-A 1 | . . . . . . . . . . . . . . . . . . . . . . . . . . 1 . . . Fabricator Hacks 8 | . . . . . . . . . . . . . . 2 . . . . . . . . . . 5 . . . 1 Load Schematic 4 | . . . . . . . . . . . . . . 1 . . . . . . . . . . 2 . . . 1 Build 4 | . . . . . . . . . . . . . . 1 . . . . . . . . . . 3 . . . . Repair Station Hacks . | . . . . . . . . . . . . . . . . . . . . . . . . . . . . . . Recycling Unit Hacks . | . . . . . . . . . . . . . . . . . . . . . . . . . . . . . . Scanalyzer . | . . . . . . . . . . . . . . . . . . . . . . . . . . . . . . Garrison Access Hacks 5 | . . . . . . . 1 1 . . . . . 1 . . . . . . . . . . . . . . 2 Seal Access 5 | . . . . . . . 1 1 . . . . . 1 . . . . . . . . . . . . . . 2 Unauthorized Hacks 28 | . . . 1 . . . 3 3 4 . . . . 3 . . . . 1 . . . . 1 9 . 1 . 2 Terminals 22 | . . . 1 . . . 3 3 3 . . . . 2 . . . . 1 . . . . 1 6 . 1 . 1 Assimilate 1 | . . . . . . . . . . . . . . 1 . . . . . . . . . . . . . . . Botnet 21 | . . . 1 . . . 3 3 3 . . . . 1 . . . . 1 . . . . 1 6 . 1 . 1 Fabricators 6 | . . . . . . . . . 1 . . . . 1 . . . . . . . . . . 3 . . . 1 Liberate 6 | . . . . . . . . . 1 . . . . 1 . . . . . . . . . . 3 . . . 1 Repair Stations . | . . . . . . . . . . . . . . . . . . . . . . . . . . . . . . Recycling Units . | . . . . . . . . . . . . . . . . . . . . . . . . . . . . . . Scanalyzers . | . . . . . . . . . . . . . . . . . . . . . . . . . . . . . . Garrison Access . | . . . . . . . . . . . . . . . . . . . . . . . . . . . . . . Data Cores Recovered 3 | . . . . . . . 1 . . . . . . . . . . . 1 . . . . . 1 . . . . Used 2 | . . . . . . . 1 . . . . . . . . . . . 1 . . . . . . . . . . Hacking Detections 42 | . 3 . 1 . . . 4 4 4 . . . . 3 . . . . 3 . . . . 2 9 . 2 . 7 Full Trace Events 11 | . . . 1 . . . . . 3 . . . . 1 . . . . 1 . . . . 1 2 . 1 . 1 Feedback Events . | . . . . . . . . . . . . . . . . . . . . . . . . . . . . . . Feedback Blocked . | . . . . . . . . . . . . . . . . . . . . . . . . . . . . . . Robot Schematics Acquired 9 | . . . . . . . . . . . . 4 . . . . 5 . . . . . . . . . . . . Robots Built 4 | . . . . . . . . . . . . . . . . . . . . . . . . . 4 . . . . Authchips . | . . . . . . . . . . . . . . . . . . . . . . . . . . . . . . Time 516 | . . . . . . . . . . . . . . 222 . . . . . . . . . . 294 . . . . Total Robot Build Rating 19 | . . . . . . . . . . . . . . . . . . . . . . . . . 19 . . . . Part Schematics Acquired 25 | . . . . . . . . . . . . 15 . . . . 10 . . . . . . . . . . . . Parts Built . | . . . . . . . . . . . . . . . . . . . . . . . . . . . . . . Authchips . | . . . . . . . . . . . . . . . . . . . . . . . . . . . . . . Time . | . . . . . . . . . . . . . . . . . . . . . . . . . . . . . . Total Part Build Rating . | . . . . . . . . . . . . . . . . . . . . . . . . . . . . . . Parts Repaired . | . . . . . . . . . . . . . . . . . . . . . . . . . . . . . . Time . | . . . . . . . . . . . . . . . . . . . . . . . . . . . . . . Parts Recycled . | . . . . . . . . . . . . . . . . . . . . . . . . . . . . . . Recycled Matter . | . . . . . . . . . . . . . . . . . . . . . . . . . . . . . . Retrieved Matter . | . . . . . . . . . . . . . . . . . . . . . . . . . . . . . . Retrieved Components . | . . . . . . . . . . . . . . . . . . . . . . . . . . . . . . Parts Scanalyzed . | . . . . . . . . . . . . . . . . . . . . . . . . . . . . . . Part Schematics Acquired . | . . . . . . . . . . . . . . . . . . . . . . . . . . . . . . Parts Damaged . | . . . . . . . . . . . . . . . . . . . . . . . . . . . . . . Bothacking | -11 -10 -10 -9 -9 -9 -8 -8 -8 -7 -7 -7 -7 -6 -6 -6 -6 -6 -5 -5 -5 -5 -5 -4 -4 -4 -4 -3 -2 -1 ------------ Run | Scr Mat Min Mat Min Exi Min Mat Sto Fac Low Low Zio Pro Fac Low Low Dat Pro Fac Upp Upp War Pro Fac Arm Lab Res Res Acc Used RIF Installer . | . . . . . . . . . . . . . . . . . . . . . . . . . . . . . . Robots Hacked . | . . . . . . . . . . . . . . . . . . . . . . . . . . . . . . Non-combat . | . . . . . . . . . . . . . . . . . . . . . . . . . . . . . . Combat . | . . . . . . . . . . . . . . . . . . . . . . . . . . . . . . Robot Hacks Applied . | . . . . . . . . . . . . . . . . . . . . . . . . . . . . . . Relay Couplers Released 5 | . . . . . . . . . 3 . . . . . . . . . . . . . . . . . . 2 . Machine Destruction 4 | . . . . . . . . . 2 . . . . . . . . . . . . . . . . . . 2 . Programmers 1 | . . . . . . . . . 1 . . . . . . . . . . . . . . . . . . . . Fabnet Peak Effective % . | . . . . . . . . . . . . . . . . . . . . . . . . . . . . . . Robots Rewired 22 | . . . . . . . . . . . . . . . . . . . . . 1 3 . . 18 . . . . Allies Hacked 2 | . . . . . . . . . . . . . . . . . . . . . . . . . 2 . . . . Hacks Repelled . | . . . . . . . . . . . . . . . . . . . . . . . . . . . . . . Allies | -11 -10 -10 -9 -9 -9 -8 -8 -8 -7 -7 -7 -7 -6 -6 -6 -6 -6 -5 -5 -5 -5 -5 -4 -4 -4 -4 -3 -2 -1 -------- Run | Scr Mat Min Mat Min Exi Min Mat Sto Fac Low Low Zio Pro Fac Low Low Dat Pro Fac Upp Upp War Pro Fac Arm Lab Res Res Acc Total Allies 37 | . . . . . . . . . 3 . . . . 2 . . . 1 . . 1 3 . . 22 2 . . 3 Largest Group 7 | . . . . . . . . . 3 . . . . 2 . . . 1 1 1 2 5 . . 7 3 2 . 3 Highest-Rated Group 376 | . . . . . . . . . 48 . . . . 82 . . . 96 96 96 126 292 . . 376 256 160 . 174 Highest-Rated Ally 96 | . . . . . . . . . 16 . . . . 41 . . . 96 96 96 96 96 . . 65 96 96 . 58 Total Orders 3 | . . . . . . . . . . . . . . . . . . . . . . . . . 3 . . . . AID 3 | . . . . . . . . . . . . . . . . . . . . . . . . . 3 . . . . Ally Attacks 137 | . . . . . . . . . 4 . . . . 8 . . . 5 5 8 . 19 . . 47 11 11 . 19 Total Damage 4239 | . . . . . . . . . 28 . . . . 246 . . . 208 189 198 . 655 . . 1539 244 355 . 577 Kills 19 | . . . . . . . . . . . . . . 1 . . . . 2 3 . 6 . . 4 . 1 . 2 Allies Corrupted 6 | . . . . . . . . . . . . . . . . . . . . . . 1 . . 3 1 . . 1 Allies Melted 2 | . . . . . . . . . . . . . . . . . . . . . . . . . . . . 2 . Intel | -11 -10 -10 -9 -9 -9 -8 -8 -8 -7 -7 -7 -7 -6 -6 -6 -6 -6 -5 -5 -5 -5 -5 -4 -4 -4 -4 -3 -2 -1 ------- Run | Scr Mat Min Mat Min Exi Min Mat Sto Fac Low Low Zio Pro Fac Low Low Dat Pro Fac Upp Upp War Pro Fac Arm Lab Res Res Acc Robot Analysis Total 1 | . . . . . . . . 1 . . . . . . . . . . . . . . . . . . . . . Derelict Logs Recovered 14 | . . . . 1 . . . . . 1 1 2 1 . . 1 . 1 . 2 2 . 2 . . . . . . Drone Launches . | . . . . . . . . . . . . . . . . . . . . . . . . . . . . . . Drone Recoveries . | . . . . . . . . . . . . . . . . . . . . . . . . . . . . . . Exploration | -11 -10 -10 -9 -9 -9 -8 -8 -8 -7 -7 -7 -7 -6 -6 -6 -6 -6 -5 -5 -5 -5 -5 -4 -4 -4 -4 -3 -2 -1 ------------- Run | Scr Mat Min Mat Min Exi Min Mat Sto Fac Low Low Zio Pro Fac Low Low Dat Pro Fac Upp Upp War Pro Fac Arm Lab Res Res Acc Turns Passed 15576 | 247 243 31 415 179 345 147 647 578 863 268 435 667 260 613 314 291 77 257 357 409 504 632 306 266 1802 616 1212 545 2050 Spaces Moved 12855 | 131 250 31 319 184 242 159 437 505 759 278 469 782 244 461 271 310 88 253 363 425 495 396 270 180 1371 388 967 543 1284 Core 146 | 26 . . . . . . . . . . . . . . . . . . . . . . . . . 109 . . 11 Treads . | . . . . . . . . . . . . . . . . . . . . . . . . . . . . . . Legs . | . . . . . . . . . . . . . . . . . . . . . . . . . . . . . . Wheels 12709 | 105 250 31 319 184 242 159 437 505 759 278 469 782 244 461 271 310 88 253 363 425 495 396 270 180 1371 279 967 543 1273 Hover . | . . . . . . . . . . . . . . . . . . . . . . . . . . . . . . Flight . | . . . . . . . . . . . . . . . . . . . . . . . . . . . . . . Fastest Speed 50 | 50 80 80 80 82 82 82 82 85 84 84 84 84 84 84 88 88 88 88 88 88 88 88 88 90 90 50 91 91 50 Average Speed 87 | 77 80 80 81 82 82 82 82 85 85 84 84 84 84 85 88 88 88 88 88 88 88 88 89 90 91 88 91 91 90 Slowest Speed 350 | 100 80 80 95 82 82 82 85 85 100 84 84 84 84 88 88 88 88 88 88 88 88 88 90 90 92 350 92 91 109 Overloaded Moves . | . . . . . . . . . . . . . . . . . . . . . . . . . . . . . . Propulsion Burnouts . | . . . . . . . . . . . . . . . . . . . . . . . . . . . . . . Robots Hopped . | . . . . . . . . . . . . . . . . . . . . . . . . . . . . . . Cave-ins Triggered . | . . . . . . . . . . . . . . . . . . . . . . . . . . . . . . Teleports 1 | . . . . . . . . . . . . . . . . . . . . . . . . . . 1 . . . Exploration Rate (%) 48 | 4 47 10 34 29 61 61 58 87 24 55 76 79 54 13 45 71 71 53 17 71 58 40 52 9 86 99 26 17 49 Regions Visited 29 Branch Regions 19 Pre-discovered Areas 6 | . . . . . . . . . . . . 3 . . . . 1 . . 1 . 1 . . . . . . . Known Exits Taken 29 | 1 1 1 1 1 1 1 1 1 1 1 1 1 1 1 1 1 1 1 1 1 1 1 1 1 1 1 1 1 . Unknown Exits Taken . | . . . . . . . . . . . . . . . . . . . . . . . . . . . . . . Scrap Searched 22 | . . . . 1 . . . . . 2 5 3 1 . 3 2 . 3 . . 1 . 1 . . . . . . Spaces Dug 25 | . . . . . . . . 1 2 . . . . . . . . . . . . . . 1 6 3 1 . 11 Terrain Destroyed 362 | . 4 . 12 6 . . 35 20 7 8 4 . . 40 . 6 . 9 . 1 . 19 3 21 68 3 22 20 54 Melee 25 | . . . . . . . . 1 2 . . . . . . . . . . . . . . 1 6 3 1 . 11 Projectile . | . . . . . . . . . . . . . . . . . . . . . . . . . . . . . . AOE 337 | . 4 . 12 6 . . 35 19 5 8 4 . . 40 . 6 . 9 . 1 . 19 3 20 62 . 21 20 43 Terrain Rammed . | . . . . . . . . . . . . . . . . . . . . . . . . . . . . . . Walls Destroyed . | . . . . . . . . . . . . . . . . . . . . . . . . . . . . . . Machines Disabled . | . . . . . . . . . . . . . . . . . . . . . . . . . . . . . . Actions | -11 -10 -10 -9 -9 -9 -8 -8 -8 -7 -7 -7 -7 -6 -6 -6 -6 -6 -5 -5 -5 -5 -5 -4 -4 -4 -4 -3 -2 -1 --------- Run | Scr Mat Min Mat Min Exi Min Mat Sto Fac Low Low Zio Pro Fac Low Low Dat Pro Fac Upp Upp War Pro Fac Arm Lab Res Res Acc Total 15588 | 241 273 33 396 200 388 166 621 590 873 299 488 789 269 636 326 319 87 273 387 442 545 620 323 231 1728 620 1134 567 1724 Wait 1002 | 89 . . 1 . 135 . 97 17 32 . . . 1 138 18 . . 5 13 . 35 148 1 14 74 134 7 . 43 Move 12826 | 130 249 30 318 183 241 158 436 504 758 277 468 781 243 460 270 309 87 252 362 424 494 395 269 179 1370 387 966 542 1284 Hop . | . . . . . . . . . . . . . . . . . . . . . . . . . . . . . . Pick Up 54 | . 1 . 1 1 . . 3 4 2 2 . 2 1 1 . 2 . 1 . 1 . 3 4 2 7 1 5 1 9 Fast Attach 124 | 6 4 . 7 . 5 . 8 4 6 . 1 . . 2 1 . . . . . 1 4 2 . 7 32 8 3 23 Attach 19 | . 1 . 1 . 1 1 . . . . . 1 . 1 . . . . . . . 1 . . 2 2 5 3 . Detach 35 | . 3 . 3 . 2 . 5 1 . . . . . 1 1 . . . . . . 3 1 . 2 3 3 3 4 Swap 30 | . . . 3 1 . . 2 2 . . 1 2 2 1 2 . . 2 1 . . . 2 2 4 . 1 . 2 Drop 148 | . 3 . 3 1 4 . 8 8 6 2 . 2 . 4 3 . . 1 1 1 . 7 6 1 13 29 12 2 31 Fire 638 | 16 10 2 47 5 . 4 40 23 42 7 11 . 11 20 4 4 . 6 6 8 8 29 5 24 80 1 47 10 168 Melee 149 | . . 1 . . . . 7 9 7 2 . 1 2 . 6 . . 1 . . . . 1 1 17 24 25 . 45 Ram 1 | . . . 1 . . . . . . . . . . . . . . . . . . . . . . . . . . Kick . | . . . . . . . . . . . . . . . . . . . . . . . . . . . . . . Crush . | . . . . . . . . . . . . . . . . . . . . . . . . . . . . . . Escape Stasis . | . . . . . . . . . . . . . . . . . . . . . . . . . . . . . . Rewire 134 | . . . . . . . . . . . . . . 1 . . . . . . 7 30 . . 94 . . . 2 Trap . | . . . . . . . . . . . . . . . . . . . . . . . . . . . . . . Miscellaneous 428 | . 2 . 11 9 . 3 15 18 20 9 7 . 9 7 21 4 . 5 4 8 . . 32 8 58 7 55 3 113 Route ------- -11/Scrapyard -10/Materials (discovered 2 exits: *Mat / *Min) -10/Mines -9/Materials (discovered 2 exits: *Mat / *Min) -9/Mines (discovered 3 exits: *Mat x2 / *Exi) -9/Exiles -8/Mines -8/Materials (discovered 4 exits: *Fac x3 / *Sto) -8/Storage (discovered 2 exits: *Fac / Rec) -7/Factory (discovered 3 exits: *Fac / *Low x2) -7/Lower Caves -7/Lower Caves (discovered 2 exits: Fac / *Zio) -7/Zion -6/Proximity Caves -6/Factory (discovered 2 exits: *Fac / *Low) -6/Lower Caves -6/Lower Caves (discovered 2 exits: Fac / *Dat) -6/Data Miner -5/Proximity Caves -5/Factory (discovered 3 exits: Fac / *Upp x2) -5/Upper Caves -5/Upper Caves (discovered 2 exits: Fac / *War) -5/Warlord -4/Proximity Caves -4/Factory (discovered 7 exits: *Res x2 / Upp x2 / Ext x2 / *Arm) -4/Armory (discovered 3 exits: *Res x2 / *Lab) -4/Lab -3/Research (discovered 3 exits: *Res x2 / Tes) -2/Research (discovered 2 exits: *Acc / *Qua) -1/Access History --------- Turn | Location | Event 4 | -11/Scrapyard | Identified exit to Materials 4 | -11/Scrapyard | Discovered exit to Materials (range 16) 5 | -11/Scrapyard | Upgraded with Propulsion slot (x1) 5 | -11/Scrapyard | Upgraded with Utility slot (x2) 5 | -11/Scrapyard | Upgraded with Weapon slot (x1) 248 | -11/Scrapyard | Entered Materials 324 | -10/Materials | Build established: Hacker-Skirmisher 351 | -10/Materials | Upgraded with Power slot (x1) 374 | -10/Materials | Identified exit to Materials 374 | -10/Materials | Discovered exit to Materials (range 16) 430 | -10/Materials | Identified exit to Mines 430 | -10/Materials | Discovered exit to Mines (range 12) 491 | -10/Materials | Entered Mines 492 | -10/Mines | Assembled infested the area 497 | -10/Mines | Assisted by a Guerilla fighting off Assembled 500 | -10/Mines | Discovered exit to Materials (range 16) 522 | -10/Mines | Entered Materials 524 | -9/Materials | Reached level 2 524 | -9/Materials | Reached level 3 526 | -9/Materials | Upgraded with Propulsion slot (x2) 526 | -9/Materials | Upgraded with Utility slot (x1) 552 | -9/Materials | Reached level 4 632 | -9/Materials | Upgraded with Weapon slot (x1) 804 | -9/Materials | Identified exit to Materials 804 | -9/Materials | Discovered exit to Materials (range 15) 888 | -9/Materials | Reached level 5 894 | -9/Materials | Identified exit to Mines 894 | -9/Materials | Discovered exit to Mines (range 16) 937 | -9/Materials | Entered Mines 942 | -9/Mines | Met a Derelict bent on vengeance 952 | -9/Mines | Identified exit to Exiles 952 | -9/Mines | Discovered exit to Exiles (range 14) 962 | -9/Mines | Build established: Scavenger-Skirmisher 981 | -9/Mines | Discovered exit to Materials (range 6) 985 | -9/Mines | Discovered exit to Materials (range 15) 1112 | -9/Mines | Deemed a non-threat by the Exiles lab entrance 1116 | -9/Mines | Entered Exiles 1136 | -9/Exiles | Met 8R-AWN 1150 | -9/Exiles | Met EX-HEX 1174 | -9/Exiles | Met EX-BIN 1201 | -9/Exiles | Aligned with FarCom system 1202 | -9/Exiles | Given EX-Vault access code 1223 | -9/Exiles | Opened EX-Vault 1227 | -9/Exiles | Found Prototype Energy Cannon 1227 | -9/Exiles | Identified Firepult 1231 | -9/Exiles | Found Prototype Ballistic Cannon 1231 | -9/Exiles | Identified AWS/Autocannon 1235 | -9/Exiles | Found Prototype Storage 1235 | -9/Exiles | Identified Superbattery 1397 | -9/Exiles | Warned to stay clear of 0b10 Research branches 1424 | -9/Exiles | Met EX-DEC 1453 | -9/Exiles | Identified exit to Mines 1453 | -9/Exiles | Discovered exit to Mines (range 10) 1461 | -9/Exiles | Left Exiles lab with Superbattery 1461 | -9/Exiles | Entered Mines 1463 | -8/Mines | Reached level 6 1481 | -8/Mines | Upgraded with Weapon slot (x1) 1602 | -8/Mines | Discovered exit to Materials (range 10) 1608 | -8/Mines | Entered Materials 1610 | -8/Materials | Reached level 7 1625 | -8/Materials | Identified exit to Factory 1644 | -8/Materials | Reached level 8 1657 | -8/Materials | Upgraded with Utility slot (x1) 1792 | -8/Materials | Build established: Scavenger-Assassin 1998 | -8/Materials | Identified exit to Storage 1998 | -8/Materials | Discovered exit to Storage (range 11) 2045 | -8/Materials | Reached level 9 2255 | -8/Materials | Entered Storage 2257 | -8/Storage | Reached level 10 2260 | -8/Storage | Upgraded with Utility slot (x1) 2702 | -8/Storage | Reached level 11 2764 | -8/Storage | Identified exit to Recycling 2764 | -8/Storage | Discovered exit to Recycling (range 12) 2818 | -8/Storage | Discovered exit to Factory (range 18) 2833 | -8/Storage | Entered Factory 2835 | -7/Factory | Reached level 12 2938 | -7/Factory | Identified exit to Factory 2938 | -7/Factory | Discovered exit to Factory (range 18) 3253 | -7/Factory | Reached level 13 3256 | -7/Factory | Garrison activated, responded to threat 3276 | -7/Factory | Reached level 14 3297 | -7/Factory | Destroyed 7 combat bots 3316 | -7/Factory | Identified exit to Lower Caves 3527 | -7/Factory | Upgraded with Propulsion slot (x1) 3696 | -7/Factory | Entered Lower Caves 3698 | -7/Lower Caves | Reached level 15 3708 | -7/Lower Caves | Learned Factory stockpile data 3879 | -7/Lower Caves | Attracted the attention of an 0b10 checkpoint 3948 | -7/Lower Caves | Identified exit to Lower Caves 3948 | -7/Lower Caves | Discovered exit to Lower Caves (range 18) 3964 | -7/Lower Caves | Entered another Lower Caves area 3986 | -7/Lower Caves | Discovered exit to Factory (range 15) 4049 | -7/Lower Caves | Spotted B-75 Beast 4064 | -7/Lower Caves | Destroyed B-75 Beast 4113 | -7/Lower Caves | Learned 4 Factory zone layouts 4328 | -7/Lower Caves | Upgraded with Utility slot (x1) 4353 | -7/Lower Caves | Build established: Scavenger-Skirmisher 4389 | -7/Lower Caves | Identified exit to Zion 4389 | -7/Lower Caves | Discovered exit to Zion (range 12) 4399 | -7/Lower Caves | Entered Zion 4401 | -7/Zion | Reached level 16 4428 | -7/Zion | Found CR-A16's Pointy Stick 4477 | -7/Zion | Identified exit to Proximity Caves 4477 | -7/Zion | Discovered exit to Proximity Caves (range 10) 4540 | -7/Zion | System corruption cleaned by Quarantine Array 4556 | -7/Zion | Learned Factory emergency access door positions 4589 | -7/Zion | Learned location of Warlord (-5) 4596 | -7/Zion | Found GAL Module 4657 | -7/Zion | Acquired unknown access codes intercepted by a Zionite 4658 | -7/Zion | Given A8's code to call for help 4718 | -7/Zion | Learned Factory garrison access intel 4918 | -7/Zion | Upgraded with Weapon slot (x1) 4929 | -7/Zion | Upgraded with Propulsion slot (x1) 5066 | -7/Zion | Entered Proximity Caves 5068 | -6/Proximity Caves | Learned Factory interactive machine intel 5233 | -6/Proximity Caves | Attracted the attention of an 0b10 checkpoint 5233 | -6/Proximity Caves | Reached level 17 5321 | -6/Proximity Caves | Discovered exit to Factory (range 8) 5326 | -6/Proximity Caves | Entered Factory 5327 | -6/Factory | Identified exit to Lower Caves 5330 | -6/Factory | Loaded intel: 51 interactive machine locations 5331 | -6/Factory | Loaded intel: 3 garrison access locations 5456 | -6/Factory | Reached level 18 5483 | -6/Factory | Identified exit to Factory 5483 | -6/Factory | Discovered exit to Factory (range 15) 5939 | -6/Factory | Entered Lower Caves 5945 | -6/Lower Caves | Spotted B-75 Beast 5971 | -6/Lower Caves | Revealed the true nature of CR-A16's Pointy Stick 5974 | -6/Lower Caves | Destroyed B-75 Beast 6090 | -6/Lower Caves | Encountered a Warlord checkpoint 6215 | -6/Lower Caves | Identified exit to Lower Caves 6215 | -6/Lower Caves | Discovered exit to Lower Caves (range 18) 6253 | -6/Lower Caves | Entered another Lower Caves area 6271 | -6/Lower Caves | Discovered exit to Factory (range 15) 6327 | -6/Lower Caves | Learned Factory stockpile data 6404 | -6/Lower Caves | Reached level 19 6478 | -6/Lower Caves | Encountered a Warlord checkpoint 6529 | -6/Lower Caves | Identified exit to Data Miner 6529 | -6/Lower Caves | Discovered exit to Data Miner (range 18) 6544 | -6/Lower Caves | Entered Data Miner 6544 | -6/Data Miner | Identified exit to Proximity Caves 6544 | -6/Data Miner | Discovered exit to Proximity Caves (range 6) 6559 | -6/Data Miner | Met Data Miner 6578 | -6/Data Miner | Learned location of Section 7 (-2) 6578 | -6/Data Miner | Acquired the access code to Warlord's prototype stash 6595 | -6/Data Miner | Received God Mode back door access code from Data Miner 6621 | -6/Data Miner | Entered Proximity Caves 6631 | -5/Proximity Caves | Reached level 20 6696 | -5/Proximity Caves | Spotted B-75 Beast 6698 | -5/Proximity Caves | Escorted by Enhanced Grunt 6703 | -5/Proximity Caves | Learned Factory stockpile data 6714 | -5/Proximity Caves | Destroyed B-75 Beast 6862 | -5/Proximity Caves | Discovered exit to Factory (range 13) 6878 | -5/Proximity Caves | Entered Factory 6878 | -5/Factory | Accompanied by 1 ally 6880 | -5/Factory | Reached level 21 6964 | -5/Factory | Identified exit to Factory 6964 | -5/Factory | Discovered exit to Factory (range 20) 7204 | -5/Factory | Identified exit to Upper Caves 7235 | -5/Factory | Entered Upper Caves 7235 | -5/Upper Caves | Accompanied by 1 ally 7236 | -5/Upper Caves | Encountered a Warlord checkpoint 7432 | -5/Upper Caves | Attracted the attention of an 0b10 checkpoint 7474 | -5/Upper Caves | Learned location of Armory (-4) 7486 | -5/Upper Caves | Learned Factory stockpile data 7576 | -5/Upper Caves | Identified exit to Upper Caves 7576 | -5/Upper Caves | Discovered exit to Upper Caves (range 14) 7644 | -5/Upper Caves | Entered another Upper Caves area 7644 | -5/Upper Caves | Accompanied by 1 ally 7649 | -5/Upper Caves | Learned Factory machine intel 7650 | -5/Upper Caves | Learned location of 1 exit from Factory 7788 | -5/Upper Caves | Discovered exit to Factory (range 18) 7824 | -5/Upper Caves | Attracted the attention of an 0b10 outpost 7829 | -5/Upper Caves | Reached level 22 7966 | -5/Upper Caves | Upgraded with Utility slot (x1) 8093 | -5/Upper Caves | Identified exit to Warlord 8093 | -5/Upper Caves | Discovered exit to Warlord (range 9) 8148 | -5/Upper Caves | Entered Warlord 8148 | -5/Warlord | Accompanied by 2 allies 8167 | -5/Warlord | Identified exit to Proximity Caves 8167 | -5/Warlord | Discovered exit to Proximity Caves (range 20) 8180 | -5/Warlord | System corruption cleaned by Quarantine Array 8280 | -5/Warlord | Met Warlord 8288 | -5/Warlord | Opened Warlord's prototype stash 8293 | -5/Warlord | Found Prototype Device 8293 | -5/Warlord | Identified Thermal Barrier 8298 | -5/Warlord | Found Prototype Processor 8298 | -5/Warlord | Identified Exp. Armor Integrity Analyzer 8304 | -5/Warlord | Found Prototype Device 8304 | -5/Warlord | Identified Exp. Phase Shifter 8305 | -5/Warlord | Warlord's base attacked by MAIN.C 8310 | -5/Warlord | Found Prototype Reactor 8310 | -5/Warlord | Identified Vortex Chain Reactor 8363 | -5/Warlord | Learned location of Testing (-3) 8364 | -5/Warlord | Learned 4 Research zone layouts 8365 | -5/Warlord | Learned Factory scanalyzer intel 8365 | -5/Warlord | Learned Factory garrison access intel 8365 | -5/Warlord | Learned Armory garrison access intel 8365 | -5/Warlord | Learned Research scanalyzer intel 8365 | -5/Warlord | Learned Research garrison access intel 8493 | -5/Warlord | Opened side exit 8517 | -5/Warlord | P-80 Master assimilated allied Warrior 6a 8579 | -5/Warlord | Build established: Hacker-Skirmisher 8623 | -5/Warlord | Destroyed 8 combat bots 8655 | -5/Warlord | Warlord forces counterattacked 8710 | -5/Warlord | Spotted Executioner 8718 | -5/Warlord | Destroyed Executioner 8732 | -5/Warlord | Reached level 23 8733 | -5/Warlord | Spotted Executioner 8742 | -5/Warlord | Destroyed Executioner 8767 | -5/Warlord | Spotted Striker 8768 | -5/Warlord | Destroyed 11 combat bots 8780 | -5/Warlord | Entered Proximity Caves 8788 | -4/Proximity Caves | Upgraded with Utility slot (x1) 8790 | -4/Proximity Caves | Spotted B-86 Titan 8806 | -4/Proximity Caves | Destroyed B-86 Titan 8808 | -4/Proximity Caves | Learned Research stockpile data 9012 | -4/Proximity Caves | Reached level 24 9051 | -4/Proximity Caves | Discovered exit to Factory (range 10) 9086 | -4/Proximity Caves | Entered Factory 9087 | -4/Factory | Identified exit to Research 9089 | -4/Factory | Loaded intel: 259 machine locations 9090 | -4/Factory | Loaded intel: 4 scanalyzer locations 9091 | -4/Factory | Loaded intel: 3 garrison access locations 9093 | -4/Factory | Discovered exit to Research (range 20) 9107 | -4/Factory | Identified exit to Upper Caves 9107 | -4/Factory | Identified exit to Extension 9107 | -4/Factory | Identified exit to Armory 9165 | -4/Factory | Incoming investigation squad redirected 9307 | -4/Factory | Reached level 25 9352 | -4/Factory | Entered Armory 9480 | -4/Armory | Upgraded with Weapon slot (x1) 9620 | -4/Armory | Spotted B-86 Titan 9638 | -4/Armory | First assault squad dispatched 9654 | -4/Armory | Incoming assault squad redirected 9666 | -4/Armory | Destroyed B-86 Titan 9695 | -4/Armory | Fabricated X-62 Marksman? 9723 | -4/Armory | Build established: Hacker-Assassin 9736 | -4/Armory | Discovered exit to Research (range 20) 9889 | -4/Armory | Fabricated O-32 Director? 10000 | -4/Armory | Found Antimissile System 10176 | -4/Armory | Reached level 26 10261 | -4/Armory | Incoming investigation squad redirected 10280 | -4/Armory | P-70 Sage assimilated allied Veteran 7d 10296 | -4/Armory | Incoming assault squad redirected 10304 | -4/Armory | Fabricated I-36 Angel? 10305 | -4/Armory | System corruption reached 10% 10686 | -4/Armory | Incoming investigation squad redirected 10738 | -4/Armory | Build established: Commander-Assassin 10868 | -4/Armory | Identified exit to Lab 10868 | -4/Armory | Discovered exit to Lab (range 7) 11023 | -4/Armory | Discovered exit to Research (range 16) 11154 | -4/Armory | Entered Lab 11154 | -4/Lab | Accompanied by 1 ally 11154 | -4/Lab | Discovered exit to Research (range 9) 11156 | -4/Lab | Reached level 27 11166 | -4/Lab | Unable to decrypt terminal 11170 | -4/Lab | Enhanced Grunt warped into view, answering call for help 11177 | -4/Lab | Enhanced Grunt warped into view, answering call for help 11350 | -4/Lab | Detected for breach 11356 | -4/Lab | Confronted by A5 11380 | -4/Lab | Destroyed A5 11458 | -4/Lab | Gained access to the hidden lab's interior 11473 | -4/Lab | Found Alien Artifact 11473 | -4/Lab | Identified Transdimensional Reconstructor 11473 | -4/Lab | Warped through subspace 11503 | -4/Lab | Found Alien Artifact 11503 | -4/Lab | Identified Integrated Mediator 11503 | -4/Lab | Installed Integrated Mediator, increased core attachment efficiency. 11513 | -4/Lab | Found Alien Artifact 11513 | -4/Lab | Identified Core Regenerator 11513 | -4/Lab | Used Core Regenerator, restored core integrity (+41) 11530 | -4/Lab | Found Prototype Device 11530 | -4/Lab | Identified AEGIS Remote Shield 11538 | -4/Lab | Found Prototype Energy Cannon 11538 | -4/Lab | Identified Potential Cannon 11541 | -4/Lab | Found Prototype Energy Cannon 11541 | -4/Lab | Identified Warp Cannon 11568 | -4/Lab | Unable to decrypt terminal 11633 | -4/Lab | Unable to decrypt terminal 11634 | -4/Lab | Found Alien Artifact 11634 | -4/Lab | Identified LC Capacitor 11701 | -4/Lab | Build established: Hacker-Assassin 11770 | -4/Lab | Entered Research 11770 | -3/Research | Accompanied by 2 allies 11771 | -3/Research | Identified exit to Testing 11772 | -3/Research | Reached level 28 11773 | -3/Research | Loaded intel: 6 scanalyzer locations 11774 | -3/Research | Loaded intel: 3 garrison access locations 12168 | -3/Research | Identified exit to Research 12168 | -3/Research | Discovered exit to Research (range 16) 12218 | -3/Research | Upgraded with Propulsion slot (x1) 12348 | -3/Research | Incoming investigation squad redirected 12366 | -3/Research | Intercept squad dispatched 12382 | -3/Research | Spotted Tracker 12383 | -3/Research | Spotted Tracker 12395 | -3/Research | Destroyed Tracker 12409 | -3/Research | Destroyed Tracker 12431 | -3/Research | Found Exp. Phase Shifter 12434 | -3/Research | Spotted Combat Programmer 12440 | -3/Research | Spotted Combat Programmer 12457 | -3/Research | Destroyed Combat Programmer 12460 | -3/Research | Destroyed Combat Programmer 12494 | -3/Research | Spotted B-86 Titan 12501 | -3/Research | Destroyed B-86 Titan 12542 | -3/Research | Found Prototype Device 12542 | -3/Research | Identified Exp. Transmission Jammer 12642 | -3/Research | Discovered exit to Research (range 17) 12783 | -3/Research | Intercept squad dispatched 12783 | -3/Research | Spotted Tracker 12785 | -3/Research | Spotted Tracker 12786 | -3/Research | Spotted Tracker 12796 | -3/Research | Destroyed Tracker 12807 | -3/Research | Destroyed Tracker 12817 | -3/Research | Destroyed Tracker 12819 | -3/Research | Spotted Combat Programmer 12819 | -3/Research | Spotted Combat Programmer 12836 | -3/Research | Spotted Combat Programmer 12860 | -3/Research | Destroyed Combat Programmer 12863 | -3/Research | Core integrity fell below 50% 12868 | -3/Research | Destroyed Combat Programmer 12892 | -3/Research | Destroyed Combat Programmer 12982 | -3/Research | Entered another Research area 12982 | -2/Research | Warlord forces began assault on 0b10 12984 | -2/Research | Reached level 29 12984 | -2/Research | Reached level 30 13092 | -2/Research | Research machine network offline 13106 | -2/Research | Upgraded with Utility slot (x1) 13172 | -2/Research | Warlord destroyed during the assault 13207 | -2/Research | Identified exit to Access 13207 | -2/Research | Discovered exit to Access (range 11) 13266 | -2/Research | Identified exit to Quarantine 13266 | -2/Research | Discovered exit to Quarantine (range 17) 13366 | -2/Research | Borebot progress halted 13480 | -2/Research | Borebot progress halted 13527 | -2/Research | Entered Access 13529 | -1/Access | Reached level 31 13561 | -1/Access | P-80 Master assimilated allied TM-YF2(b) 13573 | -1/Access | Reached level 32 13745 | -1/Access | Incoming investigation squad redirected 13942 | -1/Access | Upgraded with Utility slot (x1) 13945 | -1/Access | Intercept squad dispatched 13980 | -1/Access | Spotted Tracker 13980 | -1/Access | Spotted Tracker 13986 | -1/Access | Reached level 33 13986 | -1/Access | Destroyed Tracker 13999 | -1/Access | Destroyed Tracker 14002 | -1/Access | Spotted Combat Programmer 14026 | -1/Access | Destroyed 7 combat bots 14060 | -1/Access | Spotted Combat Programmer 14174 | -1/Access | Destroyed Combat Programmer 14193 | -1/Access | Found Prototype Processor 14193 | -1/Access | Identified Exp. Target Analyzer 14208 | -1/Access | Found Prototype Device 14208 | -1/Access | Identified Exp. Focal Shield 14270 | -1/Access | Spotted B-99 Colossus 14274 | -1/Access | Destroyed B-99 Colossus 14534 | -1/Access | Spotted B-99 Colossus 14546 | -1/Access | Destroyed B-99 Colossus 14749 | -1/Access | Reached level 34 14793 | -1/Access | Destroyed 7 combat bots 14854 | -1/Access | Garrison activated, responded to threat 14881 | -1/Access | Destroyed 8 combat bots 14906 | -1/Access | Intercept squad dispatched 14926 | -1/Access | Spotted Tracker 14926 | -1/Access | Spotted Tracker 14934 | -1/Access | Spotted Combat Programmer 14936 | -1/Access | Spotted Combat Programmer 14962 | -1/Access | Destroyed Combat Programmer 14971 | -1/Access | Destroyed Combat Programmer 14973 | -1/Access | Destroyed Tracker 15204 | -1/Access | Found Prototype Device 15204 | -1/Access | Identified Exp. Thermal Shield 15353 | -1/Access | Intercept squad dispatched 15361 | -1/Access | Spotted Tracker 15362 | -1/Access | Spotted Tracker 15375 | -1/Access | Spotted Combat Programmer 15380 | -1/Access | Spotted Combat Programmer 15397 | -1/Access | Garrison activated, responded to threat 15401 | -1/Access | Core integrity fell below 50% 15422 | -1/Access | Destroyed Combat Programmer 15469 | -1/Access | Destroyed Combat Programmer 15477 | -1/Access | Core integrity fell below 20% 15489 | -1/Access | Destroyed Tracker 15509 | -1/Access | Destroyed Tracker 15514 | -1/Access | Reached level 35 15546 | -1/Access | Destroyed 8 combat bots 15566 | -1/Access | First assault squad dispatched 15572 | -1/Access | Released all parts (23) 15577 | -1/Access | Destroyed by H-88 Terminator with KE Penetrator Last Messages --------------- 15572_ Released CR-A16's Behemoth Slayer. 15572_ Released Arm. Wheel. 15572_ Released Imp. Lightning Gun. 15572_ Released Exp. Phase Shifter. 15572_ Released Tesla Rifle. 15572_ Released Exp. Target Analyzer. 15572_ Released Tesla Rifle. 15572_ Released Imp. Arc Projector. 15572_ Released Adv. Weapon Cycler. 15572_ Released Centrium Medium Armor Plating. 15572_ Released Centrium Wheel. 15572_ Released AEGIS Remote Shield. 15572_ Released Centrium Wheel. 15572_ Slug penetrates P-80 Master. 15572_ Slug penetrates Longscan Aggregator. 15573_ EMDS Slug penetrates P-80 Master. 15573_ Terminal disabled. 15575_ Penetrated by Slug. 15576_ Combat Programmer resets P-80 Master, system corruption cleaned. 15577_ Penetrated by Slug. Map ----- +----------------------------------------------------+ | ???????????????????? ???#??#### " ? ? ####### | | ?????????????????????? ? ????#???? ? ####### | | ????????????????????????? ?????? G ???? ####### | | ?????????????????????????? ????? ?"????? ####### | | ?????????????????????????????????"??????" ####### | | ???????????????????????????????????????" ####### | | ??????????????????????????????????????"?? ####### | | ????????????????????????????????????? ####### | | ??????????????????????? ???????? ? ?###### | | ??????????????????????# #?????? ?#?#### | | ??????????????????????# #?????#####?####?## | | ??????????????????????+ C#???? # | | ??????????????????????# #???? ? # | | ??????????????????????# ##?? ?? "" # | | ??????????????????????# R ##???? "" # | | ??????????????????????# #?? ?"""""# | | ??????????????????????# #??? """"""# | | ??????????????????????# #?? "" # | | ??????????????????????# #?#? ? "" # | | ??????????????????????# #?? # | | ??????????????????????# ##?? #" | | ?????????Y????????????# h##########+######### | | ????????????????????#?# k g | | ??????????????????? ??# h %| | | ?????????#? ??????? # h | | ????????#? ?? ?? ? + @ "" =!! | | ?????#####????? ?? # lg "" %! | | ????#????# ?? # """""" [! | | ????####?? "" ? ? # " """" ! | | ???????#?#??""" # =!=["" | | ?#?###?#?# "R #"" [u!!"" | | ????###?## """ #"" /!!=[% | | ?####?#### """ #"" !*[!p | | #?#?###### #"" !==! p | | ???####### #"T "" | | ??#####################"" p "" | | #######################"" """"" | | ?######################"" ]p""""" | | #######################"" g g "" | | #######################" g "" | | #?##################### | | ####################### Y | | ####################### Y | | ######### = !%##########/######### | | %* [!# ### ### | | ! # ### ### | | =%[ %= ##### ### | | ==[%! % !==! # ### ! ### | | !=% == =[![%! ##### ### | | ######### =%[[%[ % * = [| ## ### | +----------------------------------------------------+ Best States ------------- Heat Dissipation 182 Energy Generation 110 Energy Capacity 2200 Matter Stores 300 Matter Capacity 300 Sight Range 18 Robot Scan Range 18 Terrain Scan Range 20 Terrain Scan Density 610 ECM Strength 1 Jamming Range 22 Cloak Strength 2 Power Amplification 80 EM Shielding 2 Corruption Block 20 Armor Coverage 375 Resistance: KI 65 Resistance: TH 85 Resistance: EX 55 Resistance: EM 35 Resistance: I 35 Resistance: S 35 Resistance: P 35 Point Defense Rating 240 Weapon Cycling 25 Phase Shifting 20 Evasion (%) 61 Targeting Accuracy 6 Target Analysis 10 Armor Integrity Analysis 50 Particle Charging 25 Offensive Hacking 20 Item Schematics ----------------- Kinecellerator | -7/Zion | Archive Arm. Leg | -7/Zion | Archive Mak. Kinetic Plating | -7/Zion | Archive Power Sword | -7/Zion | Archive Imp. Deuterium Engine | -7/Zion | Archive Hvy. Pick | -7/Zion | Archive Power Maul | -7/Zion | Archive Thermic Laser | -7/Zion | Archive Recalibrator | -7/Zion | Archive Imp. Focal Shield | -7/Zion | Archive Imp. Arc Projector | -7/Zion | Archive Imp. Medium Armor Plating | -7/Zion | Archive Mak. Terrain Scan Processor | -7/Zion | Archive Enh. Optical Array | -7/Zion | Archive Magnetic Acceleration Cannon | -7/Zion | Archive Combat Drone Bay | -6/Data Miner | Free Lgt. Regenerative Plating | -6/Data Miner | Free Enh. Flexi-carbon Leg | -6/Data Miner | Free Imp. Matter Compressor | -6/Data Miner | Free Neutron Cannon | -6/Data Miner | Free Impulse Thruster | -6/Data Miner | Free Imp. Phase Shifter | -6/Data Miner | Free Railgun | -6/Data Miner | Free Impulse Thruster Array | -6/Data Miner | Free Adv. Medium Treads | -6/Data Miner | Free Robot Schematics ------------------ R-06 Scavenger | -7/Zion | Archive P-60 Hacker | -7/Zion | Archive I-36 Angel | -7/Zion | Archive C-57 Dissector | -7/Zion | Archive X-62 Marksman | -6/Data Miner | Free H-66 Slayer | -6/Data Miner | Free M-22 Extractor | -6/Data Miner | Free G-50 Soldier | -6/Data Miner | Free L-61 Swordsman | -6/Data Miner | Free Fabricated ------------ X-62 Marksman | x2 | -4/Armory O-32 Director | x1 | -4/Armory | Preloaded I-36 Angel | x1 | -4/Armory Alien Tech Used ----------------- Transdimensional Reconstructor Integrated Mediator Core Regenerator LC Capacitor Achievements -------------- None Challenges ------------ None RPGLIKE | -11 -10 -10 -9 -9 -9 -8 -8 -8 -7 -7 -7 -7 -6 -6 -6 -6 -6 -5 -5 -5 -5 -5 -4 -4 -4 -4 -3 -2 -1 --------- Run | Scr Mat Min Mat Min Exi Min Mat Sto Fac Low Low Zio Pro Fac Low Low Dat Pro Fac Upp Upp War Pro Fac Arm Lab Res Res Acc Levels Raised 34 | . . . 4 . . 1 3 2 3 1 . 1 1 1 . 1 . 1 1 . 1 1 1 1 1 1 1 2 5 XP Earned 57136 | 6000 570 500 4971 750 350 1231 4273 2755 5563 733 604 244 1777 1862 484 480 220 1625 1254 807 571 1654 1287 1552 2509 970 2244 2400 6896 XP Spent 53760 | 5445 500 . 4250 425 . 1100 4760 2850 1400 . 2000 3100 . . . 1350 . . . . 5630 100 5750 . 3200 . 4200 2900 4800 Upgrades 90 | 22 1 . 7 2 . 1 11 6 1 . 1 2 . . . 6 . . . . 10 1 7 . 2 . 5 1 4 Power Slot 1 | . 1 . . . . . . . . . . . . . . . . . . . . . . . . . . . . Propulsion Slot 6 | 1 . . 2 . . . . . 1 . . 1 . . . . . . . . . . . . . . 1 . . Utility Slot 10 | 2 . . 1 . . . 1 1 . . 1 . . . . . . . . . 1 . 1 . . . . 1 1 Weapon Slot 5 | 1 . . 1 . . 1 . . . . . 1 . . . . . . . . . . . . 1 . . . . Core Integrity 4 | . . . . . . . 4 . . . . . . . . . . . . . . . . . . . . . . Heat Dissipation 21 | 4 . . 3 . . . . 5 . . . . . . . . . . . . 9 . . . . . . . . Energy Generation 3 | . . . . . . . 1 . . . . . . . . . . . . . . . . . . . . . 2 Mass Support 1 | . . . . . . . . . . . . . . . . . . . . . . 1 . . . . . . . Inventory Capacity 6 | 3 . . . . . . 2 . . . . . . . . . . . . . . . . . 1 . . . . Sight Range 2 | . . . . . . . 2 . . . . . . . . . . . . . . . . . . . . . . Sensor Range 9 | 6 . . . 2 . . . . . . . . . . . . . . . . . . . . . . . . 1 Terrain Scan Density 6 | 5 . . . . . . 1 . . . . . . . . . . . . . . . . . . . . . . Ranged Accuracy 4 | . . . . . . . . . . . . . . . . . . . . . . . . . . . 4 . . KI Resistance % 4 | . . . . . . . . . . . . . . . . 2 . . . . . . 2 . . . . . . TH Resistance % 4 | . . . . . . . . . . . . . . . . 2 . . . . . . 2 . . . . . . EX Resistance % 4 | . . . . . . . . . . . . . . . . 2 . . . . . . 2 . . . . . . Protomatter Created 7715 | . 20 . 176 90 . 99 322 405 575 203 104 . 200 135 26 126 . 146 . 82 171 304 107 475 903 . 793 82 2171 Integrity Restored 8195 | . 27 . 240 188 . 50 250 350 337 145 145 . 128 98 438 71 . 64 78 139 . . 661 129 1103 111 1154 45 2244 Core 5568 | . 10 . 240 86 . 30 165 235 238 107 92 . 83 69 358 17 . 45 44 107 . . 359 85 765 52 805 31 1545 Parts 2627 | . 17 . . 102 . 20 85 115 99 38 53 . 45 29 80 54 . 19 34 32 . . 302 44 338 59 349 14 699 Protomatter Decayed 7141 | . 9 41 85 . . 27 117 225 502 102 52 50 93 156 . . . 89 24 56 148 847 1 101 1151 53 234 1350 1628 Game ------ Seed VisualMappingBroadsword Manual? 0 Play Time 02:31:33 Cumulative 298.8 hours Start 2022.07.10 @ 15:39:25 End 2022.07.10 @ 22:59:08 Sessions 3 Manual Loads 0 Difficulty Explorer Special Mode Winter2019/RPGLIKE Game No. 105 Rogue 0 Adventurer 1 Explorer 104 Win Type - Total 24 Types 12/1/5/3/0/1/1/0/1 Lore% 88 Gallery% 89 Achievement% 79 Wizard Run 0 Options --------- ASCII 0 Keyboard 1 Movement Numpad Keybinds 0 Fullscreen 0 Font 14/Terminus Map View 76x50 Tactical HUD 1 Map Filters BRIGHTNESS(150) Filters NONE Steam 1 RUN: 773c452c-9a27-4101-8eaf-d5965e3425cf